fUSD/lending_fUSD_20240429
["ID","MTS","AMOUNT","RATE_DAILY","PERIOD"]
[324879467,1714392646592,-1052.32,0.00011547,2]
[324879468,1714392646602,-467.434413,0.00011821,2]
[324879469,1714392646612,-1052.32,0.00011821,2]
[324879470,1714392646622,-6828.57894379,0.00012,2]
[324879471,1714392646633,-9144.15966109,0.00012,2]
[324879472,1714392646645,-2785.3424,0.00012,2]
[324879479,1714393587504,298.94,8.219e-05,2]
[324879480,1714393656035,399.48907395,8.219e-05,2]
[324879481,1714393671825,249.623156,8.219e-05,2]
[324879515,1714393831463,-155.0,9.157e-05,2]
[324879516,1714393831472,-532.89332388,9.158e-05,2]
[324879517,1714393831482,-216.67,9.786e-05,2]
[324879518,1714393831492,-1745.76,9.832e-05,2]
[324879519,1714393831504,-472.0745,9.859e-05,2]
[324879520,1714393831515,-155.0,9.88e-05,2]
[324879521,1714393831526,-294.44539989,9.958e-05,2]
[324879522,1714393831538,-333.00794755,9.958e-05,2]
[324879523,1714393831594,-255.97559429,9.958e-05,2]
[324879524,1714393831607,-3451.460708,9.958e-05,2]
[324879525,1714393831617,-939.78,9.959e-05,2]
[324879526,1714393831626,-162.47,9.981e-05,2]
[324879527,1714393831636,-162.47,0.00010111,2]
[324879528,1714393831645,-3044.35,0.00010162,2]
[324879529,1714393831654,-163.75,0.00010204,2]
[324879530,1714393831664,-162.47,0.00010241,2]
[324879531,1714393831674,-200.0,0.00010246,2]
[324879532,1714393831685,-234.71,0.00010305,2]
[324879533,1714393831695,-578.1,0.00010305,2]
[324879534,1714393831704,-1699.05,0.00010305,2]
[324879535,1714393831713,-162.47,0.00010371,2]
[324879536,1714393831723,-298.94,0.00010482,2]
[324879537,1714393831732,-162.47,0.00010501,2]
[324879538,1714393831742,-157.30219282,0.00010889,2]
[324879539,1714393831753,-558.843396,0.00010889,2]
[324879540,1714393831763,-157.30219279,0.00010892,2]
[324879541,1714393831774,-157.30219279,0.00010894,2]
[324879542,1714393831783,-157.30219279,0.00010897,2]
[324879543,1714393831793,-157.30219279,0.00010899,2]
[324879544,1714393831802,-499.99,0.000109,2]
[324879545,1714393831812,-2000.0,0.00010959,3]
[324879546,1714393831822,-10000.0,0.00010959,2]
[324879547,1714393831833,-1101.04,0.00010959,2]
[324879548,1714393831843,-150.0,0.00010959,2]
[324879549,1714393831852,-11517.73,0.00010959,2]
[324879551,1714393831862,-3634.0104,0.00010969,2]
[324879553,1714393831871,-151.14,0.00010969,2]
[324879555,1714393831881,-151.14,0.0001097,2]
[324879557,1714393831890,-151.14,0.0001097,2]
[324879559,1714393831899,-151.14,0.0001097,2]
[324879561,1714393831909,-151.14,0.0001097,2]
[324879563,1714393831918,-151.14,0.0001097,2]
[324879565,1714393831927,-151.14,0.0001097,2]
[324879567,1714393831937,-151.14,0.0001097,2]
[324879569,1714393831947,-151.14,0.0001097,2]
[324879571,1714393831956,-151.14,0.0001097,2]
[324879573,1714393831966,-2322.6580486,0.00010977,2]
[324879575,1714393831975,-408.60896828,0.00010977,2]
[324879577,1714393831985,-1777.33405598,0.00010977,2]
[324879579,1714393831994,-206.86184835,0.00010978,2]
[324879581,1714393832003,-1063.22566128,0.00010978,2]
[324879583,1714393832012,-3414.70545517,0.00010978,2]
[324879585,1714393832022,-500.0,0.00010978,2]
[324879587,1714393832031,-500.0,0.00010978,2]
[324879589,1714393832041,-500.0,0.00010978,2]
[324879591,1714393832054,-500.0,0.00010978,2]
[324879593,1714393832064,-500.0,0.00010978,2]
[324879595,1714393832073,-500.0,0.00010978,2]
[324879597,1714393832085,-500.0,0.00010978,2]
[324879599,1714393832095,-500.0,0.00010978,2]
[324879600,1714393832104,-502.9041695,0.00010978,2]
[324879601,1714393832114,-500.0,0.00010978,2]
[324879602,1714393832124,-500.0,0.00010978,2]
[324879603,1714393832134,-156.3600857,0.00010979,2]
[324879604,1714393832143,-9754.47135818,0.00010979,2]
[324879605,1714393832153,-500.0,0.00010979,2]
[324879606,1714393832162,-500.0,0.00010979,2]
[324879607,1714393832171,-500.0,0.00010979,2]
[324879608,1714393832180,-500.0,0.00010979,2]
[324879609,1714393832190,-264.55724322,0.00010979,2]
[324879610,1714393832199,-500.0,0.00010979,2]
[324879611,1714393832208,-500.0,0.00010979,2]
[324879612,1714393832218,-340.45342285,0.00010979,2]
[324879613,1714393832227,-500.0,0.00010979,2]
[324879614,1714393832236,-500.0,0.00010979,2]
[324879615,1714393832246,-500.0,0.00010979,2]
[324879616,1714393832256,-500.0,0.00010979,2]
[324879617,1714393832265,-500.0,0.00010979,2]
[324879618,1714393832278,-500.0,0.00010979,2]
[324879619,1714393832287,-500.0,0.00010979,2]
[324879620,1714393832296,-500.0,0.00010979,2]
[324879621,1714393832305,-193.0766162,0.00010979,2]
[324879622,1714393832315,-500.0,0.00010979,2]
[324879623,1714393832324,-502.33594557,0.00010979,2]
[324879624,1714393832332,-500.0,0.00010979,2]
[324879625,1714393832341,-500.0,0.00010979,2]
[324879626,1714393832350,-500.0,0.00010979,2]
[324879627,1714393832359,-500.0,0.00010979,2]
[324879628,1714393832369,-500.0,0.00010979,2]
[324879629,1714393832379,-500.0,0.00010979,2]
[324879630,1714393832389,-507.45644017,0.00010979,2]
[324879631,1714393832399,-500.0,0.00010979,2]
[324879632,1714393832408,-500.0,0.00010979,2]
[324879633,1714393832417,-500.0,0.00010979,2]
[324879634,1714393832426,-500.0,0.00010979,2]
[324879635,1714393832435,-500.0,0.00010979,2]
[324879636,1714393832444,-500.0,0.00010979,2]
[324879637,1714393832454,-500.0,0.00010979,2]
[324879638,1714393832463,-500.0,0.00010979,2]
[324879639,1714393832472,-500.0,0.00010979,2]
[324879640,1714393832482,-502.33360752,0.00010979,2]
[324879641,1714393832491,-500.0,0.00010979,2]
[324879642,1714393832500,-500.0,0.00010979,2]
[324879643,1714393832510,-500.0,0.00010979,2]
[324879644,1714393832523,-500.0,0.00010979,2]
[324879645,1714393832532,-500.0,0.00010979,2]
[324879646,1714393832541,-500.0,0.00010979,2]
[324879647,1714393832552,-500.0,0.00010979,2]
[324879648,1714393832562,-500.0,0.00010979,2]
[324879649,1714393832571,-504.83593158,0.00010979,2]
[324879650,1714393832581,-500.0,0.00010979,2]
[324879651,1714393832590,-500.0,0.00010979,2]
[324879652,1714393832600,-567.19430232,0.00010979,2]
[324879653,1714393832610,-500.0,0.00010979,2]
[324879654,1714393832620,-500.0,0.00010979,2]
[324879655,1714393832630,-500.0,0.00010979,2]
[324879656,1714393832639,-500.0,0.00010979,2]
[324879657,1714393832649,-501.80107921,0.00010979,2]
[324879658,1714393832658,-500.0,0.00010979,2]
[324879659,1714393832668,-500.0,0.00010979,2]
[324879660,1714393832678,-500.0,0.00010979,2]
[324879661,1714393832687,-500.0,0.00010979,2]
[324879662,1714393832908,-500.0,0.00010979,2]
[324879663,1714393832922,-500.0,0.00010979,2]
[324879664,1714393832932,-500.0,0.00010979,2]
[324879665,1714393832942,-500.0,0.00010979,2]
[324879666,1714393832951,-500.0,0.00010979,2]
[324879667,1714393832961,-500.0,0.00010979,2]
[324879668,1714393832970,-500.0,0.00010979,2]
[324879669,1714393832981,-500.0,0.00010979,2]
[324879670,1714393832991,-502.60794594,0.00010979,2]
[324879671,1714393833001,-500.0,0.00010979,2]
[324879672,1714393833011,-500.0,0.00010979,2]
[324879673,1714393833022,-500.0,0.00010979,2]
[324879674,1714393833031,-500.0,0.00010979,2]
[324879675,1714393833040,-500.0,0.00010979,2]
[324879676,1714393833053,-500.0,0.00010979,2]
[324879677,1714393833062,-500.0,0.00010979,2]
[324879678,1714393833071,-500.0,0.00010979,2]
[324879679,1714393833083,-363.52675783,0.00010979,2]
[324879680,1714393833094,-500.0,0.00010979,2]
[324879681,1714393833105,-500.0,0.00010979,2]
[324879682,1714393833115,-500.0,0.00010979,2]
[324879683,1714393833129,-500.0,0.00010979,2]
[324879684,1714393833139,-150.0,0.00010979,2]
[324879685,1714393833148,-500.0,0.00010979,2]
[324879686,1714393833158,-500.0,0.00010979,2]
[324879687,1714393833169,-500.0,0.00010979,2]
[324879688,1714393833179,-504.23311789,0.00010979,2]
[324879689,1714393833187,-500.0,0.00010979,2]
[324879690,1714393833196,-500.0,0.00010979,2]
[324879691,1714393833207,-500.0,0.00010979,2]
[324879692,1714393833216,-500.0,0.00010979,2]
[324879693,1714393833227,-500.0,0.00010979,2]
[324879694,1714393833238,-506.42774414,0.00010979,2]
[324879695,1714393833248,-500.0,0.00010979,2]
[324879696,1714393833258,-500.0,0.00010979,2]
[324879697,1714393833267,-500.0,0.00010979,2]
[324879698,1714393833279,-546.14828872,0.00010979,2]
[324879699,1714393833288,-506.18857965,0.00010979,2]
[324879700,1714393833297,-500.0,0.00010979,2]
[324879701,1714393833306,-500.0,0.00010979,2]
[324879702,1714393833315,-504.79769083,0.00010979,2]
[324879703,1714393833325,-500.0,0.00010979,2]
[324879704,1714393833334,-500.0,0.00010979,2]
[324879705,1714393833343,-500.0,0.00010979,2]
[324879706,1714393833352,-500.0,0.00010979,2]
[324879707,1714393833361,-500.0,0.00010979,2]
[324879708,1714393833371,-500.0,0.00010979,2]
[324879709,1714393833380,-500.0,0.00010979,2]
[324879710,1714393833390,-500.0,0.00010979,2]
[324879711,1714393833400,-500.0,0.00010979,2]
[324879712,1714393833409,-500.0,0.00010979,2]
[324879713,1714393833418,-502.78774926,0.00010979,2]
[324879714,1714393833428,-500.0,0.00010979,2]
[324879715,1714393833436,-500.0,0.00010979,2]
[324879716,1714393833446,-500.0,0.00010979,2]
[324879717,1714393833455,-500.0,0.00010979,2]
[324879718,1714393833464,-500.0,0.00010979,2]
[324879719,1714393833474,-500.0,0.00010979,2]
[324879720,1714393833483,-500.0,0.00010979,2]
[324879721,1714393833493,-500.0,0.00010979,2]
[324879722,1714393833503,-502.66689526,0.00010979,2]
[324879723,1714393833512,-502.02947673,0.00010979,2]
[324879724,1714393833524,-500.0,0.00010979,2]
[324879725,1714393833532,-500.00021463,0.00010979,2]
[324879726,1714393833541,-500.0,0.00010979,2]
[324879727,1714393833550,-188.03858746,0.00010979,2]
[324879728,1714393833559,-500.0,0.00010979,2]
[324879729,1714393833569,-503.96142872,0.00010979,2]
[324879730,1714393833578,-500.0,0.00010979,2]
[324879731,1714393833587,-500.0,0.00010979,2]
[324879732,1714393833596,-500.0,0.00010979,2]
[324879733,1714393833607,-500.0,0.00010979,2]
[324879734,1714393833616,-520.57275096,0.00010979,2]
[324879735,1714393833626,-504.28260699,0.00010979,2]
[324879736,1714393833636,-500.0,0.00010979,2]
[324879737,1714393833645,-500.0,0.00010979,2]
[324879738,1714393833655,-500.0,0.00010979,2]
[324879739,1714393833665,-500.0,0.00010979,2]
[324879740,1714393833674,-500.0,0.00010979,2]
[324879741,1714393833684,-500.0,0.00010979,2]
[324879742,1714393833693,-500.0,0.00010979,2]
[324879743,1714393833702,-501.85440382,0.00010979,2]
[324879744,1714393833712,-502.22259893,0.00010979,2]
[324879745,1714393833722,-500.0,0.00010979,2]
[324879746,1714393833731,-505.7140704,0.00010979,2]
[324879747,1714393833741,-500.0,0.00010979,2]
[324879748,1714393833751,-500.0,0.00010979,2]
[324879749,1714393833761,-500.0,0.00010979,2]
[324879750,1714393833770,-500.0,0.00010979,2]
[324879751,1714393833780,-184.93465485,0.00010979,2]
[324879752,1714393833789,-235.46642041,0.00010979,2]
[324879753,1714393833799,-535.88715513,0.00010979,2]
[324879754,1714393833808,-500.0,0.00010979,2]
[324879755,1714393833818,-503.21688369,0.00010979,2]
[324879756,1714393833827,-500.0,0.00010979,2]
[324879757,1714393833836,-500.0,0.00010979,2]
[324879758,1714393833846,-500.0,0.00010979,2]
[324879759,1714393833855,-497.13161077,0.00010979,2]
[324879760,1714393833864,-500.0,0.00010979,2]
[324879761,1714393833874,-500.0,0.00010979,2]
[324879762,1714393833885,-500.0,0.00010979,2]
[324879763,1714393833895,-500.0,0.00010979,2]
[324879764,1714393833904,-500.0,0.00010979,2]
[324879765,1714393833914,-2182.08,0.00010979,2]
[324879766,1714393833923,-500.0,0.00010979,2]
[324879767,1714393833933,-500.0,0.00010979,2]
[324879768,1714393833943,-500.0,0.00010979,2]
[324879769,1714393833952,-500.0,0.00010979,2]
[324879770,1714393833961,-500.0,0.00010979,2]
[324879771,1714393833971,-508.79185624,0.00010979,2]
[324879772,1714393833980,-500.0,0.00010979,2]
[324879773,1714393833990,-500.0,0.00010979,2]
[324879774,1714393834000,-500.0,0.00010979,2]
[324879775,1714393834009,-500.0,0.00010979,2]
[324879776,1714393834018,-165.21538266,0.00010979,2]
[324879777,1714393834030,-500.0,0.00010979,2]
[324879778,1714393834039,-500.0,0.00010979,2]
[324879779,1714393834052,-647.31635482,0.00010979,2]
[324879780,1714393834061,-500.0,0.00010979,2]
[324879781,1714393834071,-500.0,0.00010979,2]
[324879782,1714393834081,-500.0,0.00010979,2]
[324879783,1714393834091,-503.90385676,0.00010979,2]
[324879784,1714393834102,-500.0,0.00010979,2]
[324879785,1714393834111,-500.0,0.00010979,2]
[324879786,1714393834120,-6502.33,0.00010979,2]
[324879787,1714393834131,-510.11914948,0.00010979,2]
[324879788,1714393834140,-500.0,0.00010979,2]
[324879789,1714393834149,-500.0,0.00010979,2]
[324879790,1714393834158,-500.0,0.00010979,2]
[324879791,1714393834167,-1000.0,0.00010979,2]
[324879792,1714393834176,-500.0,0.00010979,2]
[324879793,1714393834185,-500.0,0.00010979,2]
[324879794,1714393834195,-786.63,0.00010979,2]
[324879795,1714393834205,-500.0,0.00010979,2]
[324879796,1714393834215,-500.0,0.00010979,2]
[324879797,1714393834225,-500.0,0.00010979,2]
[324879798,1714393834236,-502.69152118,0.00010979,2]
[324879799,1714393834245,-544.44,0.00010979,2]
[324879800,1714393834254,-500.0,0.00010979,2]
[324879801,1714393834264,-500.0,0.00010979,2]
[324879802,1714393834274,-500.0,0.00010979,2]
[324879803,1714393834283,-500.0,0.00010979,2]
[324879804,1714393834292,-500.65245528,0.00010979,2]
[324879805,1714393834301,-500.0,0.00010979,2]
[324879806,1714393834310,-500.0,0.00010979,2]
[324879807,1714393834319,-500.0,0.00010979,2]
[324879808,1714393834328,-500.0,0.00010979,2]
[324879809,1714393834340,-500.0,0.00010979,2]
[324879810,1714393834349,-500.0,0.00010979,2]
[324879811,1714393834358,-500.0,0.00010979,2]
[324879812,1714393834368,-500.0,0.00010979,2]
[324879813,1714393834378,-500.0,0.00010979,2]
[324879814,1714393834387,-92.92999855,0.00010979,2]
[324879815,1714393834660,-279.69657276,0.00010978,2]
[324879816,1714393834672,-220.30342724,0.00010978,2]
[324879817,1714393834682,-445.08148169,0.00010979,2]
[324879818,1714393834692,-433.45279137,0.00010979,2]
[324879819,1714393834719,-66.54720863,0.00010979,2]
[324879820,1714393834728,-500.0,0.00010979,2]
[324879821,1714393834738,-344.4328584,0.00010979,2]
[324879822,1714393834781,-155.5671416,0.00010979,2]
[324879823,1714393834791,-293.18161727,0.00010979,2]
[324879865,1714393837511,-335.70107883,0.00010979,2]
[324879866,1714393837521,-579.41,0.00010979,2]
[324879867,1714393837534,-500.0,0.00010979,2]
[324879868,1714393837543,-500.0,0.00010979,2]
[324879869,1714393837552,-500.0,0.00010979,2]
[324879870,1714393837561,-8.11463586,0.00010979,2]
[324879871,1714393837572,-491.88536414,0.00010979,2]
[324879872,1714393837581,-500.0,0.00010979,2]
[324879873,1714393837590,-500.0,0.00010979,2]
[324879874,1714393837599,-500.0,0.00010979,2]
[324879875,1714393837608,-500.0,0.00010979,2]
[324879876,1714393837618,-500.0,0.00010979,2]
[324879877,1714393837627,-500.0,0.00010979,2]
[324879878,1714393837636,-2536.3,0.00010979,2]
[324879879,1714393837646,-500.0,0.00010979,2]
[324879880,1714393837655,-412.73900408,0.00010979,2]
[324879881,1714393837664,-500.0,0.00010979,2]
[324879882,1714393837674,-500.0,0.00010979,2]
[324879883,1714393837683,-500.0,0.00010979,2]
[324879884,1714393837692,-500.0,0.00010979,2]
[324879885,1714393837701,-500.0,0.00010979,2]
[324879886,1714393837710,-500.0,0.00010979,2]
[324879887,1714393837719,-500.0,0.00010979,2]
[324879888,1714393837728,-500.0,0.00010979,2]
[324879889,1714393837738,-500.0,0.00010979,2]
[324879890,1714393837747,-500.0,0.00010979,2]
[324879891,1714393837756,-1034.81,0.00010979,2]
[324879892,1714393837765,-500.0,0.00010979,2]
[324879893,1714393837777,-500.0,0.00010979,2]
[324879894,1714393837786,-500.0,0.00010979,2]
[324879895,1714393837795,-500.0,0.00010979,2]
[324879896,1714393837804,-500.0,0.00010979,2]
[324879897,1714393837814,-500.0,0.00010979,2]
[324879898,1714393837823,-500.0,0.00010979,2]
[324879899,1714393837832,-500.0,0.00010979,2]
[324879900,1714393837842,-500.0,0.00010979,2]
[324879901,1714393837851,-500.0,0.00010979,2]
[324879902,1714393837862,-500.0,0.00010979,2]
[324879903,1714393837871,-1527.15,0.00010979,2]
[324879905,1714393837880,-500.0,0.00010979,2]
[324879907,1714393837890,-500.0,0.00010979,2]
[324879909,1714393837899,-500.0,0.00010979,2]
[324879911,1714393837909,-502.82537685,0.00010979,2]
[324879913,1714393837918,-1054.44,0.00010979,2]
[324879915,1714393837927,-500.0,0.00010979,2]
[324879917,1714393837936,-500.0,0.00010979,2]
[324879918,1714393837945,-929.79,0.00010979,2]
[324879920,1714393837954,-500.0,0.00010979,2]
[324879923,1714393837964,-500.0,0.00010979,2]
[324879925,1714393837973,-500.0,0.00010979,2]
[324879927,1714393837982,-500.0,0.00010979,2]
[324879928,1714393837992,-1624.96,0.00010979,2]
[324879930,1714393838002,-565.9,0.00010979,2]
[324879932,1714393838011,-746.75,0.00010979,2]
[324879935,1714393838021,-500.0,0.00010979,2]
[324879936,1714393838034,-500.0,0.00010979,2]
[324879938,1714393838046,-500.0,0.00010979,2]
[324879941,1714393838056,-500.0,0.00010979,2]
[324879942,1714393838065,-500.0,0.00010979,2]
[324879945,1714393838075,-500.0,0.00010979,2]
[324879946,1714393838085,-943.09,0.00010979,2]
[324879949,1714393838095,-500.0,0.00010979,2]
[324879951,1714393838104,-500.0,0.00010979,2]
[324879952,1714393838114,-500.0,0.00010979,2]
[324879955,1714393838124,-500.0,0.00010979,2]
[324879957,1714393838134,-780.31,0.00010979,2]
[324879959,1714393838143,-500.0,0.00010979,2]
[324879961,1714393838152,-1007.67,0.00010979,2]
[324879962,1714393838160,-500.0,0.00010979,2]
[324879964,1714393838169,-500.0,0.00010979,2]
[324879994,1714393838439,-500.0,0.00010979,2]
[324879996,1714393838450,-500.0,0.00010979,2]
[324879998,1714393838459,-500.0,0.00010979,2]
[324880000,1714393838468,-299.45114458,0.00010979,2]
[324880002,1714393838478,-500.0,0.00010979,2]
[324880004,1714393838487,-500.0,0.00010979,2]
[324880006,1714393838496,-500.0,0.00010979,2]
[324880008,1714393838507,-500.0,0.00010979,2]
[324880010,1714393838516,-500.0,0.00010979,2]
[324880012,1714393838526,-500.0,0.00010979,2]
[324880014,1714393838535,-500.0,0.00010979,2]
[324880016,1714393838544,-500.0,0.00010979,2]
[324880018,1714393838553,-735.52,0.00010979,2]
[324880020,1714393838562,-500.0,0.00010979,2]
[324880022,1714393838571,-500.0,0.00010979,2]
[324880024,1714393838581,-507.74,0.00010979,2]
[324880026,1714393838590,-1371.61,0.00010979,2]
[324880028,1714393838599,-500.0,0.00010979,2]
[324880030,1714393838609,-500.0,0.00010979,2]
[324880032,1714393838619,-917.74,0.00010979,2]
[324880035,1714393838630,-500.0,0.00010979,2]
[324880036,1714393838639,-500.0,0.00010979,2]
[324880038,1714393838648,-537.23,0.00010979,2]
[324880041,1714393838659,-507.68428613,0.00010979,2]
[324880043,1714393838668,-571.08,0.00010979,2]
[324880044,1714393838677,-500.0,0.00010979,2]
[324880046,1714393838687,-500.0,0.00010979,2]
[324880048,1714393838696,-5524.5,0.00010979,2]
[324880050,1714393838707,-500.0,0.00010979,2]
[324880052,1714393838716,-207.68867775,0.00010979,2]
[324880054,1714393838726,-2383.4,0.00010979,2]
[324880056,1714393838736,-933.07,0.00010979,2]
[324880058,1714393838745,-500.0,0.00010979,2]
[324880060,1714393838754,-500.0,0.00010979,2]
[324880062,1714393838763,-500.0,0.00010979,2]
[324880064,1714393838772,-500.0,0.00010979,2]
[324880066,1714393838783,-618.93875623,0.00010979,2]
[324880068,1714393838792,-500.0,0.00010979,2]
[324880070,1714393838801,-500.0,0.00010979,2]
[324880072,1714393838811,-500.0,0.00010979,2]
[324880074,1714393838820,-501.85347347,0.00010979,2]
[324880076,1714393838829,-500.0,0.00010979,2]
[324880078,1714393838839,-1165.02,0.00010979,2]
[324880080,1714393838848,-500.0,0.00010979,2]
[324880082,1714393838858,-500.0,0.00010979,2]
[324880084,1714393838867,-500.0,0.00010979,2]
[324880086,1714393838876,-500.0,0.00010979,2]
[324880088,1714393838886,-500.0,0.00010979,2]
[324880090,1714393838895,-500.0,0.00010979,2]
[324880092,1714393838904,-500.0,0.00010979,2]
[324880094,1714393838914,-500.0,0.00010979,2]
[324880096,1714393838924,-500.0,0.00010979,2]
[324880098,1714393838933,-500.0,0.00010979,2]
[324880100,1714393838942,-569.81320775,0.00010979,2]
[324880102,1714393838952,-501.40653496,0.00010979,2]
[324880105,1714393838962,-500.0,0.00010979,2]
[324880107,1714393838971,-500.0,0.00010979,2]
[324880109,1714393838981,-500.0,0.00010979,2]
[324880111,1714393838990,-501.03110611,0.00010979,2]
[324880113,1714393838999,-500.0,0.00010979,2]
[324880114,1714393839008,-500.0,0.00010979,2]
[324880117,1714393839017,-500.0,0.00010979,2]
[324880119,1714393839027,-500.0,0.00010979,2]
[324880120,1714393839036,-500.0,0.00010979,2]
[324880122,1714393839048,-500.0,0.00010979,2]
[324880124,1714393839057,-500.0,0.00010979,2]
[324880126,1714393839067,-5767.47,0.00010979,2]
[324880129,1714393839078,-500.0,0.00010979,2]
[324880130,1714393839090,-500.0,0.00010979,2]
[324880133,1714393839100,-500.0,0.00010979,2]
[324880134,1714393839110,-500.0,0.00010979,2]
[324880137,1714393839122,-1209.79,0.00010979,2]
[324880139,1714393839132,-500.0,0.00010979,2]
[324880141,1714393839141,-500.0,0.00010979,2]
[324880142,1714393839150,-500.0,0.00010979,2]
[324880143,1714393839159,-500.0,0.00010979,2]
[324880144,1714393839167,-500.0,0.00010979,2]
[324880145,1714393839176,-583.09771851,0.00010979,2]
[324880146,1714393839186,-500.0,0.00010979,2]
[324880147,1714393839200,-500.0,0.00010979,2]
[324880148,1714393839209,-500.0,0.00010979,2]
[324880149,1714393839218,-500.0,0.00010979,2]
[324880151,1714393839228,-502.65526261,0.00010979,2]
[324880153,1714393839238,-500.0,0.00010979,2]
[324880155,1714393839248,-168.41350315,0.00010979,2]
[324880157,1714393839257,-500.0,0.00010979,2]
[324880159,1714393839266,-500.0,0.00010979,2]
[324880161,1714393839276,-500.0,0.00010979,2]
[324880163,1714393839286,-1566126.30494306,0.0001098,2]
[324880165,1714393839301,-181441.87346096,0.0001098,2]
[324880173,1714393839330,-517.09491017,0.00010979,2]
[324880176,1714393839342,-36373.01980604,0.00010979,2]
[324880178,1714393839351,-68403.48317227,0.0001098,2]
[324880180,1714393839360,-220.54,0.00010999,2]
[324880182,1714393839369,-500.0,0.00010999,2]
[324880184,1714393839378,-500.0,0.00010999,2]
[324880186,1714393839387,-500.0,0.00010999,2]
[324880188,1714393839396,-500.0,0.00010999,2]
[324880190,1714393839408,-500.0,0.00010999,2]
[324880192,1714393839417,-500.0,0.00010999,2]
[324880195,1714393839426,-500.0,0.00010999,2]
[324880197,1714393839435,-504.33966969,0.00010999,2]
[324880199,1714393839445,-500.0,0.00010999,2]
[324880201,1714393839454,-500.0,0.00010999,2]
[324880203,1714393839463,-500.0,0.00010999,2]
[324880205,1714393839472,-552.72518519,0.00010999,2]
[324880207,1714393839481,-500.0,0.00010999,2]
[324880209,1714393839490,-504.85328938,0.00010999,2]
[324880211,1714393839500,-500.0,0.00010999,2]
[324880213,1714393839508,-500.0,0.00010999,2]
[324880215,1714393839518,-500.0,0.00010999,2]
[324880217,1714393839528,-500.0,0.00010999,2]
[324880219,1714393839537,-500.0,0.00010999,2]
[324880221,1714393839546,-500.0,0.00010999,2]
[324880223,1714393839556,-174.5569406,0.00010999,2]
[324880225,1714393839565,-500.0,0.00010999,2]
[324880227,1714393839575,-500.0,0.00010999,2]
[324880229,1714393839584,-500.0,0.00010999,2]
[324880231,1714393839594,-500.62665025,0.00010999,2]
[324880233,1714393839603,-500.0,0.00010999,2]
[324880235,1714393839612,-500.0,0.00010999,2]
[324880237,1714393839622,-500.0,0.00010999,2]
[324880239,1714393839631,-500.0,0.00010999,2]
[324880241,1714393839641,-500.0,0.00010999,2]
[324880243,1714393839651,-512.40874899,0.00010999,2]
[324880245,1714393839660,-500.0,0.00010999,2]
[324880247,1714393839669,-500.0,0.00010999,2]
[324880249,1714393839679,-502.37371914,0.00010999,2]
[324880251,1714393839688,-500.0,0.00010999,2]
[324880253,1714393839698,-500.0,0.00010999,2]
[324880255,1714393839707,-500.0,0.00010999,2]
[324880257,1714393839717,-500.0,0.00010999,2]
[324880259,1714393839726,-500.0,0.00010999,2]
[324880261,1714393839735,-500.0,0.00010999,2]
[324880263,1714393839745,-500.0,0.00010999,2]
[324880265,1714393839754,-504.75099605,0.00010999,2]
[324880267,1714393839763,-500.0,0.00010999,2]